[Event "January 9 Late 2024"]
[Site "https://www.chess.com"]
[Date "2024.01.09"]
[Round "4"]
[White "Bok, Benjamin"]
[Black "Makarian, Rudik"]
[Result "1-0"]
[Board "8"]
[TimeControl "180+1"]
[WhiteFideId "1017063"]
[BlackFideId "44105681"]
[WhiteElo "2932"]
[BlackElo "3089"]
[WhiteTeam "NED"]
[BlackTeam "FID"]
[WhiteClock "0:00:07"]
[BlackClock "0:00:03"]

1. d4 {[%clk 0:03:00]}  Nf6 {[%clk 0:03:00]} 2. c4 {[%clk 0:03:00]}  e6 {[%clk 0:03:00]} 3. Nc3 {[%clk 0:03:00]}  d5 {[%clk 0:03:01]} 4. cxd5 {[%clk 0:03:01]}  exd5 {[%clk 0:03:02]} 5. Bg5 {[%clk 0:03:01]}  c6 {[%clk 0:03:02]} 6. e3 {[%clk 0:03:01]}  Bf5 {[%clk 0:03:02]} 7. Qf3 {[%clk 0:03:02]}  Bg6 {[%clk 0:03:03]} 8. Bxf6 {[%clk 0:03:02]}  Qxf6 {[%clk 0:03:04]} 9. Qxf6 {[%clk 0:03:02]}  gxf6 {[%clk 0:03:04]} 10. h4 {[%clk 0:03:03]}  h5 {[%clk 0:03:04]} 11. Kd2 {[%clk 0:03:04]}  Nd7 {[%clk 0:03:05]} 12. Nh3 {[%clk 0:03:04]}  Bd6 {[%clk 0:03:05]} 13. g3 {[%clk 0:03:04]}  a5 {[%clk 0:03:05]} 14. Bd3 {[%clk 0:03:04]}  Nb6 {[%clk 0:03:05]} 15. b3 {[%clk 0:03:03]}  Ke7 {[%clk 0:03:05]} 16. Ne2 {[%clk 0:02:57]}  a4 {[%clk 0:02:51]} 17. Nhf4 {[%clk 0:02:51]}  Rhg8 {[%clk 0:02:46]} 18. Rhg1 {[%clk 0:02:39]}  Bb4+ {[%clk 0:02:35]} 19. Kc2 {[%clk 0:02:36]}  a3 {[%clk 0:02:35]} 20. Bxg6 {[%clk 0:02:25]}  fxg6 {[%clk 0:02:34]} 21. g4 {[%clk 0:02:25]}  Kf7 {[%clk 0:01:52]} 22. gxh5 {[%clk 0:02:21]}  gxh5 {[%clk 0:01:50]} 23. Nxh5 {[%clk 0:01:55]}  c5 {[%clk 0:01:50]} 24. Rxg8 {[%clk 0:01:44]}  Rxg8 {[%clk 0:01:50]} 25. Rg1 {[%clk 0:01:43]}  Rxg1 {[%clk 0:01:46]} 26. Nxg1 {[%clk 0:01:44]}  cxd4 {[%clk 0:01:35]} 27. exd4 {[%clk 0:01:45]}  Bd6 {[%clk 0:01:26]} 28. Ne2 {[%clk 0:01:38]}  Kg6 {[%clk 0:01:15]} 29. Nhg3 {[%clk 0:01:34]}  Bb8 {[%clk 0:00:48]} 30. Nc3 {[%clk 0:01:22]}  Bd6 {[%clk 0:00:45]} 31. Kd3 {[%clk 0:01:21]}  Bb4 {[%clk 0:00:44]} 32. Nce2 {[%clk 0:01:12]}  Bd6 {[%clk 0:00:44]} 33. Ke3 {[%clk 0:01:10]}  Kf7 {[%clk 0:00:35]} 34. h5 {[%clk 0:01:05]}  Nd7 {[%clk 0:00:28]} 35. Nc3 {[%clk 0:00:52]}  Ke6 {[%clk 0:00:24]} 36. Nge2 {[%clk 0:00:49]}  Kf5 {[%clk 0:00:10]} 37. Nxd5 {[%clk 0:00:46]}  Kg5 {[%clk 0:00:11]} 38. Ndf4 {[%clk 0:00:32]}  Nb8 {[%clk 0:00:10]} 39. Nd3 {[%clk 0:00:07]}  Kxh5 {[%clk 0:00:08]} 40. Ke4 {[%clk 0:00:08]}  Kg6 {[%clk 0:00:08]} 41. Kd5 {[%clk 0:00:07]}  Bf8 {[%clk 0:00:08]} 42. Ke6 {[%clk 0:00:08]}  Na6 {[%clk 0:00:05]} 43. Kd7 {[%clk 0:00:06]}  Kf5 {[%clk 0:00:05]} 44. f3 {[%clk 0:00:06]}  b5 {[%clk 0:00:03]} 45. d5 {[%clk 0:00:05]}  Nc5+ {[%clk 0:00:02]} 46. Nxc5 {[%clk 0:00:05]}  Bxc5 {[%clk 0:00:03]} 47. Kc6 {[%clk 0:00:05]}  Bf8 {[%clk 0:00:03]} 48. d6 {[%clk 0:00:06]}  Ke6 {[%clk 0:00:04]} 49. d7 {[%clk 0:00:06]}  Be7 {[%clk 0:00:04]} 50. Nd4+ {[%clk 0:00:07]}  Ke5 {[%clk 0:00:05]} 51. Nxb5 {[%clk 0:00:07]}  Kf4 {[%clk 0:00:06]} 52. Nd4 {[%clk 0:00:07]}  Ke3 {[%clk 0:00:03]} 53. Nf5+ {[%clk 0:00:07]} 1-0

[Event "January 9 Late 2024"]
[Site "https://www.chess.com"]
[Date "2024.01.09"]
[Round "4"]
[White "Bluebaum, Matthias"]
[Black "Alekseenko, Kirill"]
[Result "1/2-1/2"]
[Board "9"]
[TimeControl "180+1"]
[WhiteFideId "24651516"]
[BlackFideId "4135539"]
[WhiteElo "3081"]
[BlackElo "2929"]
[WhiteTeam "GER"]
[BlackTeam "AUT"]
[WhiteClock "0:00:08"]
[BlackClock "0:00:07"]

1. d4 {[%clk 0:03:00]}  d5 {[%clk 0:02:59]} 2. c4 {[%clk 0:03:01]}  dxc4 {[%clk 0:03:00]} 3. e4 {[%clk 0:03:01]}  Nf6 {[%clk 0:03:00]} 4. e5 {[%clk 0:03:01]}  Nd5 {[%clk 0:03:01]} 5. Bxc4 {[%clk 0:03:02]}  Nb6 {[%clk 0:03:01]} 6. Bd3 {[%clk 0:03:02]}  Nc6 {[%clk 0:03:02]} 7. Be3 {[%clk 0:03:02]}  Be6 {[%clk 0:02:56]} 8. Nc3 {[%clk 0:03:00]}  Qd7 {[%clk 0:02:56]} 9. Nge2 {[%clk 0:02:52]}  Nb4 {[%clk 0:02:56]} 10. Be4 {[%clk 0:02:51]}  Bf5 {[%clk 0:02:57]} 11. O-O {[%clk 0:02:44]}  Bxe4 {[%clk 0:02:57]} 12. Nxe4 {[%clk 0:02:45]}  e6 {[%clk 0:02:58]} 13. Qb3 {[%clk 0:02:36]}  Qd5 {[%clk 0:02:51]} 14. Qxd5 {[%clk 0:02:30]}  N6xd5 {[%clk 0:02:40]} 15. Bd2 {[%clk 0:02:17]}  Nc6 {[%clk 0:02:35]} 16. Rfc1 {[%clk 0:02:11]}  h6 {[%clk 0:02:33]} 17. N4c3 {[%clk 0:01:57]}  O-O-O {[%clk 0:02:29]} 18. Nxd5 {[%clk 0:01:55]}  Rxd5 {[%clk 0:02:28]} 19. Be3 {[%clk 0:01:56]}  Be7 {[%clk 0:02:16]} 20. Nc3 {[%clk 0:01:55]}  Rd7 {[%clk 0:02:14]} 21. Ne2 {[%clk 0:01:48]}  Nb4 {[%clk 0:02:06]} 22. a3 {[%clk 0:01:46]}  Nd5 {[%clk 0:02:06]} 23. Rc2 {[%clk 0:01:41]}  b6 {[%clk 0:02:05]} 24. Rac1 {[%clk 0:01:40]}  Kb7 {[%clk 0:01:53]} 25. Nc3 {[%clk 0:01:40]}  Nxc3 {[%clk 0:01:45]} 26. Rxc3 {[%clk 0:01:41]}  Rc8 {[%clk 0:01:45]} 27. Kf1 {[%clk 0:01:40]}  c6 {[%clk 0:01:37]} 28. Ke2 {[%clk 0:01:40]}  Rd5 {[%clk 0:01:37]} 29. R1c2 {[%clk 0:01:34]}  a5 {[%clk 0:01:37]} 30. Kf3 {[%clk 0:01:23]}  b5 {[%clk 0:01:36]} 31. Ke4 {[%clk 0:01:23]}  Bd8 {[%clk 0:01:24]} 32. f4 {[%clk 0:01:16]}  Bb6 {[%clk 0:01:20]} 33. g4 {[%clk 0:01:15]}  a4 {[%clk 0:01:09]} 34. Rc1 {[%clk 0:01:13]}  g6 {[%clk 0:01:01]} 35. h3 {[%clk 0:01:13]}  Rd7 {[%clk 0:01:01]} 36. R3c2 {[%clk 0:01:12]}  Rdc7 {[%clk 0:00:45]} 37. Rc3 {[%clk 0:01:12]}  Rh8 {[%clk 0:00:42]} 38. f5 {[%clk 0:01:02]}  h5 {[%clk 0:00:37]} 39. fxe6 {[%clk 0:00:57]}  fxe6 {[%clk 0:00:37]} 40. Rf1 {[%clk 0:00:57]}  hxg4 {[%clk 0:00:37]} 41. hxg4 {[%clk 0:00:58]}  Rh4 {[%clk 0:00:37]} 42. Rf6 {[%clk 0:00:54]}  Rxg4+ {[%clk 0:00:34]} 43. Kf3 {[%clk 0:00:54]}  Rxd4 {[%clk 0:00:32]} 44. Bxd4 {[%clk 0:00:46]}  Bxd4 {[%clk 0:00:33]} 45. Rc2 {[%clk 0:00:47]}  Bxe5 {[%clk 0:00:32]} 46. Rxe6 {[%clk 0:00:48]}  Bd4 {[%clk 0:00:29]} 47. Rxg6 {[%clk 0:00:48]}  Kb6 {[%clk 0:00:26]} 48. Ke4 {[%clk 0:00:48]}  Bh8 {[%clk 0:00:26]} 49. Rh6 {[%clk 0:00:44]}  Bg7 {[%clk 0:00:27]} 50. Rg6 {[%clk 0:00:44]}  Bh8 {[%clk 0:00:27]} 51. Rh6 {[%clk 0:00:36]}  Bg7 {[%clk 0:00:26]} 52. Rh7 {[%clk 0:00:37]}  Re7+ {[%clk 0:00:26]} 53. Kf5 {[%clk 0:00:31]}  Rc7 {[%clk 0:00:19]} 54. Kg6 {[%clk 0:00:29]}  Bd4 {[%clk 0:00:18]} 55. Rxc7 {[%clk 0:00:30]}  Kxc7 {[%clk 0:00:19]} 56. Kf5 {[%clk 0:00:31]}  Kb6 {[%clk 0:00:18]} 57. Ke6 {[%clk 0:00:31]}  b4 {[%clk 0:00:09]} 58. axb4 {[%clk 0:00:19]}  Kb5 {[%clk 0:00:09]} 59. Kd6 {[%clk 0:00:19]}  Kxb4 {[%clk 0:00:08]} 60. Rxc6 {[%clk 0:00:07]}  Bxb2 {[%clk 0:00:06]} 61. Ra6 {[%clk 0:00:07]}  a3 {[%clk 0:00:06]} 62. Rxa3 {[%clk 0:00:08]}  Kxa3 {[%clk 0:00:07]} 1/2-1/2

[Event "January 9 Late 2024"]
[Site "https://www.chess.com"]
[Date "2024.01.09"]
[Round "4"]
[White "Ibarra Jerez, Jose Carlos"]
[Black "Oparin, Grigoriy"]
[Result "0-1"]
[Board "10"]
[TimeControl "180+1"]
[WhiteFideId "2226332"]
[BlackFideId "24125890"]
[WhiteElo "2928"]
[BlackElo "3064"]
[WhiteTeam "ESP"]
[BlackTeam "USA"]
[WhiteClock "0:00:00"]
[BlackClock "0:00:06"]

1. e4 {[%clk 0:03:00]}  c6 {[%clk 0:02:59]} 2. Nf3 {[%clk 0:02:59]}  d5 {[%clk 0:03:00]} 3. d3 {[%clk 0:02:59]}  Qc7 {[%clk 0:02:58]} 4. exd5 {[%clk 0:02:59]}  cxd5 {[%clk 0:02:59]} 5. c4 {[%clk 0:03:00]}  Nf6 {[%clk 0:02:59]} 6. Nc3 {[%clk 0:03:00]}  e6 {[%clk 0:02:54]} 7. a3 {[%clk 0:03:00]}  a6 {[%clk 0:02:53]} 8. g3 {[%clk 0:02:59]}  dxc4 {[%clk 0:02:47]} 9. dxc4 {[%clk 0:02:59]}  Bd6 {[%clk 0:02:46]} 10. Qe2 {[%clk 0:02:57]}  O-O {[%clk 0:02:44]} 11. Bg2 {[%clk 0:02:57]}  Nc6 {[%clk 0:02:42]} 12. b4 {[%clk 0:02:51]}  e5 {[%clk 0:02:18]} 13. c5 {[%clk 0:02:29]}  Be7 {[%clk 0:02:18]} 14. O-O {[%clk 0:02:28]}  Bg4 {[%clk 0:02:17]} 15. Qc4 {[%clk 0:02:23]}  Be6 {[%clk 0:02:13]} 16. Qe2 {[%clk 0:02:21]}  Nd5 {[%clk 0:02:07]} 17. Bb2 {[%clk 0:02:15]}  Nxc3 {[%clk 0:02:02]} 18. Bxc3 {[%clk 0:02:15]}  f6 {[%clk 0:02:02]} 19. Rfd1 {[%clk 0:01:54]}  Rfd8 {[%clk 0:02:02]} 20. Nh4 {[%clk 0:01:41]}  Rxd1+ {[%clk 0:02:00]} 21. Rxd1 {[%clk 0:01:41]}  Rd8 {[%clk 0:02:00]} 22. Be4 {[%clk 0:01:32]}  g6 {[%clk 0:01:58]} 23. Nf3 {[%clk 0:01:24]}  Kf7 {[%clk 0:01:31]} 24. Kg2 {[%clk 0:01:16]}  Bb3 {[%clk 0:01:06]} 25. Rb1 {[%clk 0:01:11]}  Be6 {[%clk 0:01:05]} 26. Rd1 {[%clk 0:01:10]}  Qc8 {[%clk 0:01:04]} 27. h4 {[%clk 0:01:00]}  Rxd1 {[%clk 0:00:51]} 28. Qxd1 {[%clk 0:00:59]}  f5 {[%clk 0:00:51]} 29. Bxc6 {[%clk 0:00:46]}  Qxc6 {[%clk 0:00:52]} 30. Kh2 {[%clk 0:00:42]}  Qe4 {[%clk 0:00:33]} 31. Nxe5+ {[%clk 0:00:37]}  Ke8 {[%clk 0:00:33]} 32. Qd2 {[%clk 0:00:23]}  f4 {[%clk 0:00:28]} 33. Qxf4 {[%clk 0:00:14]}  Qxf4 {[%clk 0:00:29]} 34. gxf4 {[%clk 0:00:15]}  Bxh4 {[%clk 0:00:29]} 35. Kg2 {[%clk 0:00:13]}  Bd5+ {[%clk 0:00:26]} 36. f3 {[%clk 0:00:14]}  Be7 {[%clk 0:00:23]} 37. Ng4 {[%clk 0:00:13]}  Kf7 {[%clk 0:00:22]} 38. Ne3 {[%clk 0:00:12]}  Be6 {[%clk 0:00:22]} 39. Be5 {[%clk 0:00:11]}  Ke8 {[%clk 0:00:19]} 40. Kg3 {[%clk 0:00:11]}  Kd7 {[%clk 0:00:20]} 41. f5 {[%clk 0:00:08]}  Bxf5 {[%clk 0:00:13]} 42. Nxf5 {[%clk 0:00:08]}  gxf5 {[%clk 0:00:14]} 43. Kf4 {[%clk 0:00:05]}  Ke6 {[%clk 0:00:15]} 44. Bb2 {[%clk 0:00:05]}  h6 {[%clk 0:00:14]} 45. Ke3 {[%clk 0:00:02]}  Bg5+ {[%clk 0:00:12]} 46. f4 {[%clk 0:00:01]}  Bh4 {[%clk 0:00:10]} 47. Be5 {[%clk 0:00:02]}  Kd5 {[%clk 0:00:11]} 48. Kd3 {[%clk 0:00:01]}  Be1 {[%clk 0:00:09]} 49. Bd6 {[%clk 0:00:01]}  h5 {[%clk 0:00:09]} 50. Ke2 {[%clk 0:00:02]}  Bc3 {[%clk 0:00:08]} 51. Kd3 {[%clk 0:00:02]}  Bb2 {[%clk 0:00:06]} 52. a4 {[%clk 0:00:02]}  h4 {[%clk 0:00:07]} 53. Ke2 {[%clk 0:00:02]}  Ba3 {[%clk 0:00:06]} 54. b5 {[%clk 0:00:03]}  axb5 {[%clk 0:00:06]} 55. axb5 {[%clk 0:00:03]}  Bxc5 {[%clk 0:00:06]} 56. Be5 {[%clk 0:00:04]}  Ke4 {[%clk 0:00:06]} 57. Kf1 {[%clk 0:00:00]}  Kf3 {[%clk 0:00:06]} 0-1

[Event "January 9 Late 2024"]
[Site "https://www.chess.com"]
[Date "2024.01.09"]
[Round "4"]
[White "Hess, Robert"]
[Black "Pranav, V"]
[Result "1/2-1/2"]
[Board "13"]
[TimeControl "180+1"]
[WhiteFideId "2022036"]
[BlackFideId "25060783"]
[WhiteElo "2906"]
[BlackElo "3042"]
[WhiteTeam "USA"]
[BlackTeam "IND"]
[WhiteClock "0:00:05"]
[BlackClock "0:00:05"]

1. e4 {[%clk 0:02:56]}  e5 {[%clk 0:02:59]} 2. Nc3 {[%clk 0:02:56]}  Nf6 {[%clk 0:02:57]} 3. Bc4 {[%clk 0:02:56]}  Nc6 {[%clk 0:02:57]} 4. d3 {[%clk 0:02:56]}  Bc5 {[%clk 0:02:56]} 5. f4 {[%clk 0:02:56]}  d5 {[%clk 0:02:56]} 6. Nxd5 {[%clk 0:02:56]}  Be6 {[%clk 0:02:57]} 7. Nxf6+ {[%clk 0:02:55]}  Qxf6 {[%clk 0:02:57]} 8. Bxe6 {[%clk 0:02:54]}  Qxe6 {[%clk 0:02:58]} 9. f5 {[%clk 0:02:51]}  Qd6 {[%clk 0:02:59]} 10. Nf3 {[%clk 0:02:46]}  O-O-O {[%clk 0:02:58]} 11. Qe2 {[%clk 0:02:46]}  g6 {[%clk 0:02:58]} 12. fxg6 {[%clk 0:02:33]}  hxg6 {[%clk 0:02:57]} 13. a3 {[%clk 0:02:29]}  f5 {[%clk 0:02:57]} 14. Bg5 {[%clk 0:02:29]}  Rd7 {[%clk 0:02:53]} 15. Be3 {[%clk 0:02:13]}  Bxe3 {[%clk 0:02:38]} 16. Qxe3 {[%clk 0:02:12]}  f4 {[%clk 0:02:39]} 17. Qf2 {[%clk 0:02:09]}  Qe6 {[%clk 0:02:37]} 18. Rg1 {[%clk 0:01:40]}  b6 {[%clk 0:02:32]} 19. g3 {[%clk 0:01:40]}  Kb7 {[%clk 0:02:25]} 20. gxf4 {[%clk 0:01:32]}  Rf8 {[%clk 0:02:24]} 21. Ng5 {[%clk 0:01:21]}  Qe7 {[%clk 0:02:16]} 22. f5 {[%clk 0:01:06]}  Nd4 {[%clk 0:02:09]} 23. O-O-O {[%clk 0:01:03]}  Rd6 {[%clk 0:01:23]} 24. Kb1 {[%clk 0:00:52]}  gxf5 {[%clk 0:01:14]} 25. exf5 {[%clk 0:00:53]}  Nxf5 {[%clk 0:01:14]} 26. Rdf1 {[%clk 0:00:49]}  Rc6 {[%clk 0:01:03]} 27. Qf3 {[%clk 0:00:38]}  Rf6 {[%clk 0:01:03]} 28. Ne4 {[%clk 0:00:35]}  Rf8 {[%clk 0:01:01]} 29. Rg6 {[%clk 0:00:26]}  Nd4 {[%clk 0:00:41]} 30. Qxf8 {[%clk 0:00:26]}  Qxf8 {[%clk 0:00:42]} 31. Rxf8 {[%clk 0:00:26]}  Rxg6 {[%clk 0:00:43]} 32. c3 {[%clk 0:00:25]}  Rg1+ {[%clk 0:00:38]} 33. Ka2 {[%clk 0:00:25]}  Ne2 {[%clk 0:00:39]} 34. Kb3 {[%clk 0:00:20]}  Nf4 {[%clk 0:00:33]} 35. d4 {[%clk 0:00:19]}  Re1 {[%clk 0:00:27]} 36. Nf2 {[%clk 0:00:09]}  Ne6 {[%clk 0:00:26]} 37. Rg8 {[%clk 0:00:04]}  exd4 {[%clk 0:00:26]} 38. cxd4 {[%clk 0:00:04]}  Nxd4+ {[%clk 0:00:27]} 39. Kc3 {[%clk 0:00:04]}  Nf5 {[%clk 0:00:25]} 40. Nd3 {[%clk 0:00:03]}  Re3 {[%clk 0:00:25]} 41. Rh8 {[%clk 0:00:03]}  Nd6 {[%clk 0:00:23]} 42. Kd2 {[%clk 0:00:03]}  Nc4+ {[%clk 0:00:22]} 43. Kc2 {[%clk 0:00:04]}  a5 {[%clk 0:00:21]} 44. Rh4 {[%clk 0:00:04]}  Nd6 {[%clk 0:00:19]} 45. Rh7 {[%clk 0:00:03]}  a4 {[%clk 0:00:19]} 46. h4 {[%clk 0:00:04]}  Ne4 {[%clk 0:00:13]} 47. Nf4 {[%clk 0:00:04]}  Rf3 {[%clk 0:00:07]} 48. Nd5 {[%clk 0:00:04]}  Kc6 {[%clk 0:00:07]} 49. Nb4+ {[%clk 0:00:03]}  Kd6 {[%clk 0:00:06]} 50. Rh6+ {[%clk 0:00:03]}  Kd7 {[%clk 0:00:06]} 51. Rh7+ {[%clk 0:00:04]}  Kd6 {[%clk 0:00:07]} 52. Rh6+ {[%clk 0:00:04]}  Ke7 {[%clk 0:00:02]} 53. Nd5+ {[%clk 0:00:04]}  Kd7 {[%clk 0:00:02]} 54. Rh7+ {[%clk 0:00:05]}  Kc6 {[%clk 0:00:03]} 55. Nxc7 {[%clk 0:00:05]}  Rf2+ {[%clk 0:00:03]} 56. Kd3 {[%clk 0:00:05]}  Nc5+ {[%clk 0:00:03]} 57. Kc3 {[%clk 0:00:05]}  Ne4+ {[%clk 0:00:04]} 58. Kd4 {[%clk 0:00:05]}  Nf6 {[%clk 0:00:04]} 59. Rf7 {[%clk 0:00:04]}  Rxb2 {[%clk 0:00:04]} 60. Rxf6+ {[%clk 0:00:04]}  Kxc7 {[%clk 0:00:05]} 61. Rf3 {[%clk 0:00:04]}  Rh2 {[%clk 0:00:04]} 62. Rf4 {[%clk 0:00:03]}  Rh3 {[%clk 0:00:05]} 63. Kc4 {[%clk 0:00:03]}  Rxa3 {[%clk 0:00:04]} 64. Kb5 {[%clk 0:00:03]}  Rh3 {[%clk 0:00:01]} 65. Rxa4 {[%clk 0:00:03]}  Kd6 {[%clk 0:00:01]} 66. Kxb6 {[%clk 0:00:03]}  Ke6 {[%clk 0:00:01]} 67. Rb4 {[%clk 0:00:03]}  Kf6 {[%clk 0:00:02]} 68. Ka5 {[%clk 0:00:03]}  Kg6 {[%clk 0:00:02]} 69. Kb5 {[%clk 0:00:04]}  Kh5 {[%clk 0:00:03]} 70. Ka5 {[%clk 0:00:04]}  Rxh4 {[%clk 0:00:04]} 71. Rxh4+ {[%clk 0:00:05]}  Kxh4 {[%clk 0:00:05]} 1/2-1/2

[Event "January 9 Late 2024"]
[Site "https://www.chess.com"]
[Date "2024.01.09"]
[Round "4"]
[White "Van Foreest, Jorden"]
[Black "Remizov, Yaroslav"]
[Result "1-0"]
[Board "16"]
[TimeControl "180+1"]
[WhiteFideId "1039784"]
[BlackFideId "34134015"]
[WhiteElo "3026"]
[BlackElo "2852"]
[WhiteTeam "NED"]
[BlackTeam "RUS"]
[WhiteClock "0:01:37"]
[BlackClock "0:00:00"]

1. e4 {[%clk 0:03:00]}  c5 {[%clk 0:02:59]} 2. Nf3 {[%clk 0:03:01]}  d6 {[%clk 0:02:59]} 3. Nc3 {[%clk 0:03:00]}  Nf6 {[%clk 0:02:58]} 4. Be2 {[%clk 0:03:01]}  g6 {[%clk 0:02:54]} 5. d4 {[%clk 0:03:00]}  cxd4 {[%clk 0:02:55]} 6. Nxd4 {[%clk 0:03:01]}  Bg7 {[%clk 0:02:55]} 7. Be3 {[%clk 0:03:01]}  O-O {[%clk 0:02:56]} 8. Qd2 {[%clk 0:03:02]}  Nc6 {[%clk 0:02:56]} 9. O-O-O {[%clk 0:03:02]}  Bd7 {[%clk 0:02:35]} 10. h4 {[%clk 0:03:02]}  Nxd4 {[%clk 0:02:35]} 11. Bxd4 {[%clk 0:03:02]}  Qb8 {[%clk 0:02:35]} 12. h5 {[%clk 0:03:00]}  b5 {[%clk 0:02:35]} 13. h6 {[%clk 0:02:56]}  Bh8 {[%clk 0:02:35]} 14. Nd5 {[%clk 0:02:56]}  Nxd5 {[%clk 0:02:20]} 15. Bxh8 {[%clk 0:02:57]}  Kxh8 {[%clk 0:02:15]} 16. exd5 {[%clk 0:02:58]}  Qb6 {[%clk 0:02:07]} 17. Qd4+ {[%clk 0:02:43]}  Qxd4 {[%clk 0:02:06]} 18. Rxd4 {[%clk 0:02:44]}  Kg8 {[%clk 0:02:02]} 19. Re1 {[%clk 0:02:41]}  f6 {[%clk 0:01:59]} 20. Bd3 {[%clk 0:02:39]}  Kf7 {[%clk 0:01:58]} 21. f4 {[%clk 0:02:40]}  Rac8 {[%clk 0:01:42]} 22. c3 {[%clk 0:02:39]}  Rc5 {[%clk 0:01:41]} 23. Kd2 {[%clk 0:02:39]}  Bf5 {[%clk 0:01:32]} 24. b4 {[%clk 0:02:35]}  Rc7 {[%clk 0:01:25]} 25. Bxb5 {[%clk 0:02:34]}  Rb8 {[%clk 0:01:15]} 26. Rc4 {[%clk 0:02:34]}  Rcb7 {[%clk 0:00:58]} 27. Ba6 {[%clk 0:02:33]}  Rb6 {[%clk 0:00:57]} 28. Rc6 {[%clk 0:02:19]}  Bd7 {[%clk 0:00:45]} 29. Rxb6 {[%clk 0:02:09]}  axb6 {[%clk 0:00:46]} 30. Bd3 {[%clk 0:01:57]}  Ra8 {[%clk 0:00:32]} 31. Ra1 {[%clk 0:01:54]}  Ke8 {[%clk 0:00:07]} 32. a4 {[%clk 0:01:46]}  Kf7 {[%clk 0:00:04]} 33. a5 {[%clk 0:01:46]}  bxa5 {[%clk 0:00:04]} 34. bxa5 {[%clk 0:01:45]}  e6 {[%clk 0:00:03]} 35. dxe6+ {[%clk 0:01:41]}  Bxe6 {[%clk 0:00:04]} 36. a6 {[%clk 0:01:41]}  Bd5 {[%clk 0:00:04]} 37. g4 {[%clk 0:01:40]}  Be6 {[%clk 0:00:03]} 38. g5 {[%clk 0:01:40]}  Bd5 {[%clk 0:00:04]} 39. Rb1 {[%clk 0:01:38]}  Ke6 {[%clk 0:00:03]} 40. Ke3 {[%clk 0:01:36]}  fxg5 {[%clk 0:00:03]} 41. fxg5 {[%clk 0:01:36]}  Ke5 {[%clk 0:00:04]} 42. Rb5 {[%clk 0:01:37]}  Ke6 {[%clk 0:00:00]} 43. Rxd5 {[%clk 0:01:37]} 1-0

[Event "January 9 Late 2024"]
[Site "https://www.chess.com"]
[Date "2024.01.09"]
[Round "4"]
[White "Svane, Rasmus"]
[Black "Mikaelyan, Arman"]
[Result "0-1"]
[Board "17"]
[TimeControl "180+1"]
[WhiteFideId "4657101"]
[BlackFideId "13304852"]
[WhiteElo "3017"]
[BlackElo "2831"]
[WhiteTeam "GER"]
[BlackTeam "ARM"]
[WhiteClock "0:00:00"]
[BlackClock "0:00:09"]

1. Nf3 {[%clk 0:02:58]}  Nf6 {[%clk 0:03:00]} 2. g3 {[%clk 0:02:58]}  g6 {[%clk 0:03:00]} 3. Bg2 {[%clk 0:02:58]}  Bg7 {[%clk 0:03:00]} 4. O-O {[%clk 0:02:58]}  O-O {[%clk 0:03:01]} 5. d4 {[%clk 0:02:58]}  d6 {[%clk 0:03:00]} 6. Re1 {[%clk 0:02:58]}  Nc6 {[%clk 0:02:49]} 7. d5 {[%clk 0:02:55]}  Nb4 {[%clk 0:02:47]} 8. e4 {[%clk 0:02:51]}  c6 {[%clk 0:02:46]} 9. a3 {[%clk 0:02:49]}  Na6 {[%clk 0:02:45]} 10. dxc6 {[%clk 0:02:49]}  bxc6 {[%clk 0:02:46]} 11. e5 {[%clk 0:02:50]}  Nd5 {[%clk 0:02:36]} 12. Nbd2 {[%clk 0:02:30]}  Nc5 {[%clk 0:02:22]} 13. Nc4 {[%clk 0:02:08]}  Ba6 {[%clk 0:02:18]} 14. Ne3 {[%clk 0:02:04]}  Nxe3 {[%clk 0:02:01]} 15. Bxe3 {[%clk 0:02:01]}  Na4 {[%clk 0:01:56]} 16. b3 {[%clk 0:01:49]}  Nc3 {[%clk 0:01:54]} 17. Qd2 {[%clk 0:01:49]}  Ne4 {[%clk 0:01:32]} 18. Qb4 {[%clk 0:01:43]}  d5 {[%clk 0:01:33]} 19. Rad1 {[%clk 0:01:21]}  Qc7 {[%clk 0:01:33]} 20. Bc5 {[%clk 0:01:17]}  Rab8 {[%clk 0:01:28]} 21. Qd4 {[%clk 0:01:16]}  Rb5 {[%clk 0:01:13]} 22. b4 {[%clk 0:00:46]}  Nxc5 {[%clk 0:01:12]} 23. bxc5 {[%clk 0:00:47]}  Qa5 {[%clk 0:01:10]} 24. Bf1 {[%clk 0:00:45]}  Rb7 {[%clk 0:01:04]} 25. Bxa6 {[%clk 0:00:44]}  Qxa6 {[%clk 0:01:05]} 26. Rd3 {[%clk 0:00:34]}  Rfb8 {[%clk 0:00:59]} 27. Kg2 {[%clk 0:00:33]}  h6 {[%clk 0:00:58]} 28. h4 {[%clk 0:00:32]}  e6 {[%clk 0:00:50]} 29. h5 {[%clk 0:00:23]}  g5 {[%clk 0:00:50]} 30. Nh2 {[%clk 0:00:24]}  Rb1 {[%clk 0:00:43]} 31. Rxb1 {[%clk 0:00:20]}  Rxb1 {[%clk 0:00:44]} 32. Ng4 {[%clk 0:00:21]}  Qa5 {[%clk 0:00:43]} 33. Re3 {[%clk 0:00:12]}  Qb5 {[%clk 0:00:43]} 34. Rd3 {[%clk 0:00:12]}  Re1 {[%clk 0:00:26]} 35. Nf6+ {[%clk 0:00:05]}  Kf8 {[%clk 0:00:21]} 36. Rb3 {[%clk 0:00:04]}  Qf1+ {[%clk 0:00:21]} 37. Kf3 {[%clk 0:00:04]}  Bxf6 {[%clk 0:00:13]} 38. Rb8+ {[%clk 0:00:03]}  Bd8 {[%clk 0:00:09]} 39. Rxd8+ {[%clk 0:00:00]}  Ke7 {[%clk 0:00:09]} 0-1

[Event "January 9 Late 2024"]
[Site "https://www.chess.com"]
[Date "2024.01.09"]
[Round "4"]
[White "Martinez Alcantara, Jose Eduardo"]
[Black "Karacsonyi, Gellert"]
[Result "1/2-1/2"]
[Board "18"]
[TimeControl "180+1"]
[WhiteFideId "3805662"]
[BlackFideId "764620"]
[WhiteElo "3013"]
[BlackElo "2772"]
[WhiteTeam "PER"]
[BlackTeam "HUN"]
[WhiteClock "0:00:21"]
[BlackClock "0:00:28"]

1. e4 {[%clk 0:02:59]}  c5 {[%clk 0:02:59]} 2. Nf3 {[%clk 0:03:00]}  Nc6 {[%clk 0:02:59]} 3. c3 {[%clk 0:03:00]}  Nf6 {[%clk 0:02:59]} 4. Bd3 {[%clk 0:03:00]}  d6 {[%clk 0:02:59]} 5. h3 {[%clk 0:02:59]}  g6 {[%clk 0:02:59]} 6. Bc2 {[%clk 0:02:59]}  Bg7 {[%clk 0:03:00]} 7. O-O {[%clk 0:02:59]}  O-O {[%clk 0:03:00]} 8. d4 {[%clk 0:03:00]}  cxd4 {[%clk 0:03:00]} 9. cxd4 {[%clk 0:03:01]}  e6 {[%clk 0:02:47]} 10. Nc3 {[%clk 0:02:58]}  d5 {[%clk 0:02:47]} 11. e5 {[%clk 0:02:58]}  Nd7 {[%clk 0:02:46]} 12. Bg5 {[%clk 0:02:55]}  Qb6 {[%clk 0:02:44]} 13. Rb1 {[%clk 0:02:44]}  a6 {[%clk 0:02:44]} 14. Qd2 {[%clk 0:02:44]}  f6 {[%clk 0:02:40]} 15. exf6 {[%clk 0:02:42]}  Nxf6 {[%clk 0:02:41]} 16. Be3 {[%clk 0:02:29]}  Bd7 {[%clk 0:02:38]} 17. Ne5 {[%clk 0:02:27]}  Qc7 {[%clk 0:02:28]} 18. Nxc6 {[%clk 0:02:27]}  Bxc6 {[%clk 0:02:25]} 19. Bh6 {[%clk 0:02:24]}  Rae8 {[%clk 0:02:25]} 20. Rfe1 {[%clk 0:02:23]}  Bxh6 {[%clk 0:02:14]} 21. Qxh6 {[%clk 0:02:24]}  Qg7 {[%clk 0:02:14]} 22. Qd2 {[%clk 0:02:14]}  Nh5 {[%clk 0:02:13]} 23. Re5 {[%clk 0:02:11]}  Nf4 {[%clk 0:01:47]} 24. Rbe1 {[%clk 0:02:10]}  Bd7 {[%clk 0:01:48]} 25. R1e3 {[%clk 0:02:05]}  Rf7 {[%clk 0:01:42]} 26. Ne2 {[%clk 0:01:30]}  Ref8 {[%clk 0:01:36]} 27. Nxf4 {[%clk 0:01:30]}  Rxf4 {[%clk 0:01:37]} 28. f3 {[%clk 0:01:26]}  Qf6 {[%clk 0:01:35]} 29. a4 {[%clk 0:00:51]}  Qh4 {[%clk 0:01:33]} 30. Rd3 {[%clk 0:00:52]}  Qg3 {[%clk 0:01:29]} 31. Ree3 {[%clk 0:00:43]}  Rc8 {[%clk 0:01:14]} 32. Bd1 {[%clk 0:00:43]}  Rh4 {[%clk 0:01:03]} 33. Kf1 {[%clk 0:00:30]}  e5 {[%clk 0:00:57]} 34. dxe5 {[%clk 0:00:27]}  Rxh3 {[%clk 0:00:48]} 35. Qf2 {[%clk 0:00:20]}  Rh1+ {[%clk 0:00:28]} 36. Ke2 {[%clk 0:00:21]} 1/2-1/2